[Event "12th National Amateur Chess-ch 2025"]
[Site "Bihar"]
[Date "2025.03.27"]
[Round "5.6"]
[White "Salil, Kumar D."]
[Black "Archisman Patra"]
[Result "0-1"]
[Annotator "NA RC"]
[ECO "C02"]
[WhiteElo "1777"]
[BlackElo "1791"]
[PlyCount "86"]
[EventDate "2025.03.25"]
[EventCountry "IND"]
[SourceTitle "playchess.com"]
[Source "ChessBase"]
[SourceQuality "1"]
[TimeControl "5400+30"]

1. e4 {[%emt 0:03:31]} e6 {[%emt 0:00:30]} 2. d4 {[%emt 0:00:31]} d5 {[%emt 0:00:06]} 3. e5 {[%emt 0:00:23]} c5 {[%emt 0:00:09]} 4. c3 {[%emt 0:00:04]} Nc6 {[%emt 0:00:07]} 5. Nf3 {[%emt 0:00:04]} Qb6 {[%emt 0:00:07]} 6. Be2 {[%emt 0:00:14]} cxd4 {[%emt 0:00:31]} 7. cxd4 {[%emt 0:00:25]} Nh6 {[%emt 0:00:42]} 8. Qb3 {[%emt 0:04:24]} Nf5 {[%emt 0:07:26]} 9. Qxb6 {[%emt 0:03:04]} axb6 {[%emt 0:00:07]} 10. Bb5 {[%emt 0:01:49]} Bd7 {[%emt 0:00:10]} 11. Bxc6 {[%emt 0:00:25]} bxc6 {[%emt 0:00:49]} 12. g4 {[%emt 0:00:32]} Ne7 {[%emt 0:00:57]} 13. Be3 {[%emt 0:02:26]} h5 {[%emt 0:01:20]} 14. g5 {[%emt 0:00:59]} g6 {[%emt 0:05:27]} 15. Na3 {[%emt 0:02:16]} Nf5 {[%emt 0:00:49]} 16. Nc2 {[%emt 0:00:14]} Be7 {[%emt 0:00:41]} 17. h4 {[%emt 0:00:53]} O-O {[%emt 0:00:30]} 18. O-O {[%emt 0:04:05]} Rfc8 {[%emt 0:01:34]} 19. Rfc1 {[%emt 0:03:38]} c5 {[%emt 0:01:13]} 20. a3 {[%emt 0:00:48]} Kf8 {[%emt 0:15:56]} 21. Bd2 {[%emt 0:06:42]} Ba4 {[%emt 0:02:07]} 22. dxc5 {[%emt 0:03:29]} bxc5 {[%emt 0:01:46]} 23. b4 {[%emt 0:10:36]} Ke8 {[%emt 0:07:27]} 24. bxc5 {[%emt 0:07:06]} Bxc5 {[%emt 0:01:41]} 25. Nb4 {[%emt 0:04:16]} Bb5 {[%emt 0:03:40]} 26. Re1 {[%emt 0:05:03]} Kd7 {[%emt 0:04:00]} 27. Be3 {[%emt 0:11:16]} Be7 {[%emt 0:02:21]} 28. Nd4 {[%emt 0:01:33]} Nxd4 {[%emt 0:00:27]} 29. Bxd4 {[%emt 0:00:05]} Rc4 {[%emt 0:00:19]} 30. Be3 {[%emt 0:03:01]} Rc3 {[%emt 0:03:52]} 31. Reb1 {[%emt 0:02:26]} Ba4 {[%emt 0:06:12]} 32. Rc1 {[%emt 0:03:22]} Rac8 {[%emt 0:02:58]} 33. Rcb1 {[%emt 0:06:33]} Ke8 {[%emt 0:03:47]} 34. Bd2 {[%emt 0:02:44]} R3c4 {[%emt 0:01:19]} 35. f4 {[%emt 0:00:22]} Rd4 {[%emt 0:05:46]} 36. Be3 {[%emt 0:01:13]} Re4 {[%emt 0:00:44]} 37. Kf2 {[%emt 0:01:50]} Rc3 {[%emt 0:03:55]} 38. Re1 {[%emt 0:03:42]} Rexe3 {[%emt 0:09:43]} 39. Rxe3 {[%emt 0:00:09]} Bc5 {[%emt 0:00:01]} 40. Rae1 {[%emt 0:00:49]} Rxa3 {[%emt 0:00:26]} 41. Na6 {[%emt 0:00:29]} Ra2+ {[%emt 0:00:00]} 42. Kf3 {[%emt 0:00:27]} Bxe3 {[%emt 0:00:32]} 43. Rxe3 {[%emt 0:00:15]} Bd1+ {[%emt 0:00:04]} 0-1

[Event "12th National Amateur Chess-ch 2025"]
[Site "Bihar"]
[Date "2025.03.27"]
[Round "5.7"]
[White "Pradeep Tiwari"]
[Black "Rahul, Kumar"]
[Result "1-0"]
[Annotator "TA"]
[ECO "E09"]
[WhiteElo "1979"]
[BlackElo "1825"]
[PlyCount "101"]
[EventDate "2025.03.25"]
[EventCountry "IND"]
[SourceTitle "playchess.com"]
[Source "ChessBase"]
[SourceQuality "1"]
[TimeControl "5400+30"]

{[%evp 22,100,91,66,65,37,80,26,85,93,186,187,192,169,189,167,181,153,237,188,256,237,256,245,256,256,254,244,250,258,247,234,308,310,340,203,223,157,252,244,268,285,256,172,187,170,154,110,184,148,214,189,197,167,363,362,360,361,302,300,325,277,260,164,468,483,552,527,29992,29993,29993,29994,29994,29995,29995,326,29996,29997,29998,29999,29999]} 1. d4 {[%emt 0:03:50]} d5 {[%emt 0:00:42]} 2. Nf3 {[%emt 0:00:06]} Nf6 {[%emt 0:00:29]} 3. c4 {[%emt 0:01:01]} e6 {[%emt 0:00:32]} 4. g3 {[%emt 0:00:06]} Be7 {[%emt 0:01:56]} 5. Bg2 {[%emt 0:00:12]} O-O {[%emt 0:02:13]} 6. Nbd2 {[%emt 0:02:33]} c6 {[%emt 0:06:28]} 7. Qc2 {[%emt 0:00:13]} Nbd7 {[%emt 0:06:46]} 8. O-O {[%emt 0:00:44]} Re8 {[%emt 0:01:44]} 9. e4 {[%emt 0:00:08]} dxe4 {[%emt 0:02:13]} 10. Nxe4 {[%emt 0:00:10]} Nxe4 {[%emt 0:00:09]} 11. Qxe4 {[%emt 0:00:05]} Nf6 {[%emt 0:00:05]} 12. Qc2 {[%emt 0:00:17] White is more active.} c5 {[%emt 0:03:54] E09: Closed Catalan: Main Line: 7 Qc2 c6 8 Nbd2.} 13. Rd1 {[%emt 0:00:27]} Qb6 {[%emt 0:01:46]} 14. h3 {[%emt 0:07:13]} ({White should try} 14. Bf4 $16) 14... h6 $146 {[%emt 0:05:09]} (14... cxd4 $11 15. Nxd4 Bd7) ({Predecessor:} 14... cxd4 15. Nxd4 e5 16. Nb5 a6 17. Be3 Qa5 18. Nd6 Bxd6 19. Rxd6 Qc7 20. Rad1 Be6 {1-0 Zhao,S (2166)-Bai,X (2029) CHN-chB (Women) 2019 (11)}) 15. Be3 $16 {[%emt 0:00:20]} Rd8 {[%emt 0:06:47]} (15... Qc7 $16) 16. dxc5 $18 {[%emt 0:00:58]} Qc7 {[%emt 0:03:53]} 17. b4 {[%emt 0:01:45]} e5 {[%emt 0:02:37] Prevents Bf4.} 18. Rxd8+ {[%emt 0:06:39]} Bxd8 {[%emt 0:00:17]} 19. Rd1 {[%emt 0:00:33][%cal Of3e5]} Nd7 {[%emt 0:00:26]} (19... Be6 $16 20. Qc3 Nd7) 20. Nd2 {[%emt 0:01:22]} Nf8 {[%emt 0:00:46]} (20... Nf6 21. b5 (21. Ne4 Nxe4 22. Qxe4 a6 $18) 21... Be6) 21. Ne4 {[%emt 0:00:35]} Bf5 {[%emt 0:00:57] [#]} 22. Nf6+ $1 {[%emt 0:02:33][%mdl 512]} Bxf6 {[%emt 0:00:15]} 23. Qxf5 {[%emt 0:00:03]} Qe7 {[%emt 0:01:26] Black is weak on the light squares} 24. Bd5 {[%emt 0:03:39]} Rd8 {[%emt 0:01:33]} 25. Qe4 {[%emt 0:00:34]} Ne6 {[%emt 0:02:07]} 26. h4 {[%emt 0:00:20]} Qc7 {[%emt 0:01:17]} 27. Rd2 {[%emt 0:01:32]} Nd4 {[%emt 0:04:18]} 28. f4 {[%emt 0:05:37]} (28. Bxb7 $142 {Hoping for Bd5.} Rb8 29. c6) 28... Nc6 {[%emt 0:01:58]} 29. a3 {[%emt 0:00:40]} Rd7 {[%emt 0:05:53]} (29... exf4 $16 {might work better.} 30. Bxf4 Qc8) 30. Kg2 {[%emt 0:02:15]} Re7 {[%emt 0:02:16] [#]} 31. Bxc6 $1 {[%emt 0:01:42]} bxc6 {[%emt 0:10:00]} 32. Qd3 {[%emt 0:03:57]} Qb7 {[%emt 0:03:47]} 33. fxe5 {[%emt 0:04:29]} Bxe5 {[%emt 0:04:22]} 34. Bf2 {[%emt 0:00:24]} g6 {[%emt 0:02:29]} (34... a6 $16 35. h5 Bf6) 35. h5 {[%emt 0:01:36]} Kh7 {[%emt 0:01:51]} (35... gxh5 $16 36. Qf5 Re6 37. Qxh5 Qe7 38. Qg4+ Bg7) 36. Re2 {[%emt 0:01:02]} a6 {[%emt 0:02:00]} 37. Re4 {[%emt 0:01:14]} Qc7 $2 {[%emt 0:07:20]} (37... Bg7 38. Qf3 Rxe4 39. Qxe4 Bc3 40. hxg6+ fxg6) 38. hxg6+ {[%emt 0:00:12]} fxg6 {[%emt 0:00:17]} 39. Qe2 {[%emt 0:00:28]} Bf6 {[%emt 0:04:12]} 40. Rxe7+ {[%emt 0:00:15]} Bxe7 {[%emt 0:00:50][%mdl 4096] Endgame KQB-KQB. White is a pawn up.} 41. Qe6 {[%emt 0:00:08] Qf7+ would kill now.} Bf8 {[%emt 0:01:36]} 42. Be3 {[%emt 0:00:17]} Qg7 $2 {[%emt 0:00:34]} (42... Qb7 43. Bd2 Qe7 44. Qxe7+ (44. Qxc6 Qe2+ 45. Kh3 Qxd2 $11) 44... Bxe7) 43. Qxc6 {[%emt 0:00:48]} Qb2+ {[%emt 0:00:10]} 44. Bf2 {[%emt 0:00:05]} Qxa3 {[%emt 0:00:24]} 45. Qd7+ {[%emt 0:00:06]} Kg8 {[%emt 0:01:13]} 46. Qe6+ {[%emt 0:00:10]} Kh8 {[%emt 0:00:42]} 47. Bd4+ {[%emt 0:00:16]} Bg7 {[%emt 0:00:03]} 48. Qe8+ {[%emt 0:00:19]} Kh7 {[%emt 0:00:05]} 49. Qd7 {[%emt 0:00:30][%csl Gd4][%cal Rd7g7] White mates.} Qb2+ {[%emt 0:00:17]} 50. Bxb2 {[%emt 0:00:09][%csl Gb2][%cal Rd7g7]} h5 {[%emt 0:00:07]} 51. Qxg7# {[%emt 0:00:06] Weighted Error Value: White=0.20 (precise) /Black=0.56  Mistake:       	White=2     	Black=9      Inaccurate:     	White=3     	Black=3      OK:         	White=11    	Black=9      Best:        	White=3     	---        Strong:       	White=1     	---} 1-0

[Event "12th National Amateur Chess-ch 2025"]
[Site "Bihar"]
[Date "2025.03.27"]
[Round "5.8"]
[White "Ebenezer, Joseph"]
[Black "Shitiz Prasad"]
[Result "1-0"]
[Annotator "TA"]
[ECO "C54"]
[WhiteElo "1961"]
[BlackElo "1798"]
[PlyCount "79"]
[EventDate "2025.03.25"]
[EventCountry "IND"]
[SourceTitle "playchess.com"]
[Source "ChessBase"]
[SourceQuality "1"]
[TimeControl "5400+30"]

{[%evp 9,79,0,18,-67,-55,-66,-62,-62,-46,-43,-45,-75,-62,-79,-27,-58,56,67,83,78,121,0,0,0,8,15,33,10,40,47,84,-104,162,152,223,204,308,287,247,25,87,0,97,0,0,0,277,275,297,303,508,472,825,808,983,752,739,736,720,704,852,853,1275,1269,1260,1260,1220,1135,29956,696,29952,2516]} 1. e4 {[%emt 0:01:32]} e5 {[%emt 0:01:20]} 2. Nf3 {[%emt 0:00:36]} Nc6 {[%emt 0:00:13]} 3. Bc4 {[%emt 0:00:04]} Bc5 {[%emt 0:00:19]} 4. c3 {[%emt 0:00:10]} Nf6 {[%emt 0:00:02]} 5. d4 {[%emt 0:00:26]} exd4 {[%emt 0:00:05]} 6. b4 {[%emt 0:00:22] C54: Giuoco Piano: 4 c3 Nf6, main lines with 5 d4 and 5 d3.} (6. cxd4 $11 Bb4+ 7. Bd2) 6... Bb6 $1 $15 {[%emt 0:03:19]} 7. e5 {[%emt 0:00:51][%cal Be4e5,Be5f6,Bf6g7][%mdl 32]} d5 {[%emt 0:00:50]} 8. exf6 {[%emt 0:00:31] Black is slightly better.} dxc4 {[%emt 0:00:29]} 9. Qe2+ {[%emt 0:00:11]} Be6 {[%emt 0:00:32]} 10. b5 $1 {[%emt 0:00:32]} Na5 $1 {[%emt 0:01:24]} 11. fxg7 {[%emt 0:02:25]} Rg8 {[%emt 0:00:23]} 12. cxd4 {[%emt 0:01:43]} Bxd4 {[%emt 0:10:41] 12...Rxg7 might become the main line.} (12... Rxg7 13. Nc3 (13. O-O Qf6 $15) 13... Rxg2 14. Kf1 $16) (12... Qd7 $1 $15 13. O-O O-O-O) 13. Nxd4 $14 {[%emt 0:00:18]} Qxd4 {[%emt 0:00:05]} 14. Bb2 {[%emt 0:00:22]} Qd3 {[%emt 0:00:31]} 15. Nc3 {[%emt 0:01:12]} (15. Bf6 $16) 15... O-O-O {[%emt 0:02:45] Strongly threatening ...Qg6.} 16. Rd1 $36 {[%emt 0:13:46][%mdl 2048] White fights for an advantage.} Qg6 {[%emt 0:01:40] A sharp opening} 17. Rxd8+ $1 {[%emt 0:09:20]} Rxd8 {[%emt 0:02:31]} 18. Ne4 $146 {[%emt 0:02:03][%cal Bc3e4,Be4g3,Bg3h5,Bh5f6,Bf6g8][%mdl 32]} (18. O-O Qxg7 19. Na4 Qg5 20. Be5 Qd2 21. Qe4 Qd5 22. Qe3 Qxb5 23. Nc3 Qb6 24. Qg3 {0-1 Nenova,A (1969)-Oflaz,F (1779) EU-ch U14 Girls 2024 (5)}) 18... Qxg2 {[%emt 0:03:27]} (18... c3 $5 19. Bxc3 Bc4 $16 (19... Qxg2 20. Ng3 $14)) 19. Ng3 {[%emt 0:00:11]} Qd5 {[%emt 0:06:29]} 20. Rg1 $2 {[%emt 0:02:58]} (20. Bf6 $16 Rg8 21. Qe4) 20... f5 $2 {[%emt 0:05:01][%mdl 8192]} (20... Qxb5 $17 21. Ne4 Qb4+ 22. Nc3 Rg8) 21. Nh5 $18 {[%emt 0:03:12] Black is weak on the dark squares} Bg8 {[%emt 0:04:38]} (21... c3 $16 22. Bxc3 Qd6) 22. Nf6 $1 {[%emt 0:05:32]} Qd6 {[%emt 0:01:37] [#]} (22... Qd3 $142 23. f3 (23. Qxd3 cxd3 24. Nxg8 Rxg8 $16) 23... b6 (23... c3 $2 24. Qxd3 Rxd3 25. Nxg8 $18) 24. Nxg8 Rxg8) 23. Nxg8 $1 {[%emt 0:06:13]} Rxg8 {[%emt 0:00:27]} 24. Ba3 $2 {[%emt 0:04:47]} Qf6 {[%emt 0:01:44]} (24... Qd5 $1 $11) 25. Bf8 {[%emt 0:15:12]} (25. Qe7 $16 Qxe7+ (25... Qa1+ $2 26. Ke2 $18) 26. Bxe7) 25... b6 {[%emt 0:11:10] [#]} (25... Qa1+ $11 26. Qd1 Qe5+ (26... Qxa2 27. Qd5 $18) 27. Kf1 Qxb5) 26. Rg3 {[%emt 0:03:18] Active counter play!} (26. Kf1 $1 $16) 26... Qa1+ $11 {[%emt 0:10:02]} 27. Qd1 {[%emt 0:01:54] Chess con chili.} Qxd1+ {[%emt 0:01:08][%mdl 8192]} (27... Qxa2 28. Re3 c3 29. Re8+ (29. Rxc3 Nb7 $16) 29... Kb7 30. Qf3+ c6 31. bxc6+ (31. Qxc3 Qb1+ 32. Kd2 Qxb5 $11) (31. Qxf5 Qd2+ 32. Kf1 Qd1+ 33. Kg2 Qd5+ 34. Qxd5 cxd5 $11) 31... Nxc6 32. Re7+ (32. Qxf5 $2 Qa1+ 33. Ke2 Nd4+ 34. Kd3 Nxf5 $19) (32. Qxc3 Qb1+ 33. Ke2 Qb5+ 34. Ke1 Qb1+ 35. Ke2 Qb5+ 36. Kd2 a5 $11) 32... Ka6 33. Qxc6 Qd2+ 34. Kf1 Qd3+ 35. Kg2 $18) (27... Qe5+ $11 28. Re3 Qxb5 (28... Qxh2 29. Re8+ Kb7 30. Qd5+ c6 31. Qf7+ Qc7 32. Re7)) 28. Kxd1 {[%emt 0:00:01][%mdl 4096] Endgame KRB-KRN. Black is a pawn up.} Kd7 {[%emt 0:00:04]} 29. Re3 {[%emt 0:01:30][%cal Bg3e3,Be3e7,Be7f7,Bf7c7][%mdl 32]} c3 $2 {[%emt 0:05:21]} (29... Nb7 {was worth a try.} 30. Re7+ Kc8) 30. Re7+ $18 {[%emt 0:01:35]} Kd8 {[%emt 0:00:01]} (30... Kd6 $142 31. Kc2 Nc4 32. Kxc3 Na3 33. Re2+ Kd5 34. Bxa3 Rxg7) 31. Rf7 {[%emt 0:03:15]} Nb7 {[%emt 0:10:11]} 32. Kc2 {[%emt 0:05:53]} Kc8 {[%emt 0:02:52]} 33. Be7 {[%emt 0:04:14] Strongly threatening Rf8+.} Kd7 {[%emt 0:00:28]} 34. Bf6+ {[%emt 0:03:56]} ({Weaker is} 34. Kxc3 Ke6 35. Rf8 Rxg7 $17) 34... Ke8 {[%emt 0:00:06]} 35. Rxc7 {[%emt 0:00:24]} Nd6 {[%emt 0:00:06]} 36. Re7+ {[%emt 0:00:13]} (36. Kxc3 $2 {is the wrong capture.} Nxb5+ 37. Kb4 Nxc7 $19) 36... Kd8 {[%emt 0:00:06]} 37. Rxa7+ {[%emt 0:00:15]} Ke8 {[%emt 0:00:05]} 38. a4 {[%emt 0:02:07]} Ne4 {[%emt 0:00:34]} 39. Re7+ {[%emt 0:00:10]} Kd8 {[%emt 0:00:05]} 40. Rxe4+ {[%emt 0:00:04] Weighted Error Value: White=0.35/Black=1.02  Loses game:     	---       	Black=2      Missed win:     	White=1     	---        Mistake:       	White=4     	Black=7      Inaccurate:     	White=1     	Black=3      OK:         	White=7     	Black=3      Best:        	White=4     	Black=3      Strong:       	White=5     	Black=2} 1-0

[Event "12th National Amateur Chess-ch 2025"]
[Site "Bihar"]
[Date "2025.03.27"]
[Round "5.9"]
[White "Gadge Vedant"]
[Black "Muthu Kannan Sundaram M"]
[Result "1-0"]
[Annotator "NA RC"]
[ECO "C00"]
[WhiteElo "1667"]
[BlackElo "1556"]
[PlyCount "89"]
[EventDate "2025.03.25"]
[EventCountry "IND"]
[SourceTitle "playchess.com"]
[Source "ChessBase"]
[SourceQuality "1"]
[TimeControl "5400+30"]

1. Nf3 {[%emt 0:00:55]} Nf6 {[%emt 0:00:38]} 2. d3 {[%emt 0:00:09]} d5 {[%emt 0:01:30]} 3. Nbd2 {[%emt 0:02:50]} e6 {[%emt 0:02:45]} 4. g3 {[%emt 0:00:00]} c5 {[%emt 0:01:08]} 5. Bg2 {[%emt 0:00:33]} Nc6 {[%emt 0:00:10]} 6. O-O {[%emt 0:00:54]} Be7 {[%emt 0:01:36]} 7. Re1 {[%emt 0:00:40]} O-O {[%emt 0:00:15]} 8. e4 {[%emt 0:00:00]} dxe4 {[%emt 0:02:48]} 9. dxe4 {[%emt 0:00:00]} e5 {[%emt 0:01:01]} 10. c3 {[%emt 0:00:00]} Qc7 {[%emt 0:01:45]} 11. Qe2 {[%emt 0:00:00]} Be6 {[%emt 0:01:47]} 12. Nh4 {[%emt 0:00:37]} Rfe8 {[%emt 0:04:41]} 13. Nf5 {[%emt 0:00:50]} Bf8 {[%emt 0:01:09]} 14. Nf1 {[%emt 0:00:42]} Ne7 {[%emt 0:01:57]} 15. g4 {[%emt 0:01:00]} Nxf5 {[%emt 0:02:13]} 16. exf5 {[%emt 0:00:48]} Bd5 {[%emt 0:00:18]} 17. c4 {[%emt 0:06:56]} Bxg2 {[%emt 0:00:51]} 18. Kxg2 {[%emt 0:00:06]} h6 {[%emt 0:02:11]} 19. h4 {[%emt 0:02:03]} Rad8 {[%emt 0:08:07]} 20. g5 {[%emt 0:01:58]} Nh7 {[%emt 0:02:00]} 21. Be3 {[%emt 0:02:29]} Qc6+ {[%emt 0:01:56]} 22. Kh3 {[%emt 0:01:48]} Qc8 {[%emt 0:04:34]} 23. Ng3 {[%emt 0:04:04]} hxg5 {[%emt 0:02:54]} 24. hxg5 {[%emt 0:00:50]} Be7 {[%emt 0:00:40]} 25. Qg4 {[%emt 0:02:41]} Rd4 {[%emt 0:06:18]} 26. Bxd4 {[%emt 0:03:59]} Nxg5+ {[%emt 0:00:11]} 27. Kg2 {[%emt 0:00:13]} cxd4 {[%emt 0:01:43]} 28. Ne4 {[%emt 0:04:11]} Nxe4 {[%emt 0:02:32]} 29. Qxe4 {[%emt 0:00:05]} Bf6 {[%emt 0:01:32]} 30. b3 {[%emt 0:00:22]} Kf8 {[%emt 0:00:59]} 31. Rad1 {[%emt 0:00:40]} Qc6 {[%emt 0:01:57]} 32. Qxc6 {[%emt 0:03:43]} bxc6 {[%emt 0:00:02]} 33. Kf3 {[%emt 0:00:31]} a5 {[%emt 0:01:18]} 34. c5 {[%emt 0:01:00]} Rd8 {[%emt 0:01:00]} 35. Ke4 {[%emt 0:03:50]} Rd5 {[%emt 0:01:23]} 36. Rc1 {[%emt 0:01:17]} d3 {[%emt 0:01:47]} 37. Rc4 {[%emt 0:00:52]} d2 {[%emt 0:00:56]} 38. Rd1 {[%emt 0:00:02]} Bg5 {[%emt 0:00:11]} 39. a3 {[%emt 0:00:12]} Ke7 {[%emt 0:02:08]} 40. b4 {[%emt 0:01:01]} axb4 {[%emt 0:00:34]} 41. axb4 {[%emt 0:00:55]} Kd7 {[%emt 0:00:14]} 42. b5 {[%emt 0:00:00]} Be7 {[%emt 0:05:16]} 43. Ra4 {[%emt 0:02:28]} Bxc5 {[%emt 0:00:07]} 44. bxc6+ {[%emt 0:00:17]} Kd6 {[%emt 0:01:23]} 45. c7 {[%emt 0:06:15]} 1-0

[Event "12th National Amateur Chess-ch 2025"]
[Site "Bihar"]
[Date "2025.03.27"]
[Round "5.10"]
[White "Bala Ganesan"]
[Black "Bibek Rai"]
[Result "1-0"]
[Annotator "NA RC"]
[ECO "B07"]
[WhiteElo "1656"]
[BlackElo "1482"]
[PlyCount "105"]
[EventDate "2025.03.25"]
[EventCountry "IND"]
[SourceTitle "playchess.com"]
[Source "ChessBase"]
[SourceQuality "1"]
[TimeControl "5400+30"]

1. e4 {[%emt 0:01:59]} d6 {[%emt 0:00:11]} 2. d4 {[%emt 0:00:15]} Nf6 {[%emt 0:00:03]} 3. Bd3 {[%emt 0:01:14]} g6 {[%emt 0:00:11]} 4. Nf3 {[%emt 0:04:21]} Bg4 {[%emt 0:00:10]} 5. Nbd2 {[%emt 0:00:18]} Bg7 {[%emt 0:00:52]} 6. h3 {[%emt 0:00:28]} Bxf3 {[%emt 0:00:06]} 7. Nxf3 {[%emt 0:00:05]} O-O {[%emt 0:02:49]} 8. Be3 {[%emt 0:00:17]} Nfd7 {[%emt 0:00:45]} 9. Qd2 {[%emt 0:00:27]} Nc6 {[%emt 0:01:09]} 10. c3 {[%emt 0:02:58]} e5 {[%emt 0:00:57]} 11. g4 {[%emt 0:01:23]} Qf6 {[%emt 0:06:01]} 12. Qe2 {[%emt 0:02:30]} Qd8 {[%emt 0:02:30]} 13. O-O-O {[%emt 0:01:39]} Ne7 {[%emt 0:03:05]} 14. h4 {[%emt 0:03:00]} c5 {[%emt 0:08:51]} 15. d5 {[%emt 0:03:06]} h6 {[%emt 0:01:33]} 16. Nh2 {[%emt 0:03:41]} a6 {[%emt 0:01:52]} 17. Nf1 {[%emt 0:00:23]} b5 {[%emt 0:03:48]} 18. Ng3 {[%emt 0:00:25]} c4 {[%emt 0:04:18]} 19. Bc2 {[%emt 0:00:16]} a5 {[%emt 0:06:02]} 20. Rdg1 {[%emt 0:02:43]} b4 {[%emt 0:02:47]} 21. Qd2 {[%emt 0:17:21]} bxc3 {[%emt 0:02:50]} 22. bxc3 {[%emt 0:04:37]} Rb8 {[%emt 0:00:19]} 23. Bxh6 {[%emt 0:02:10]} Qb6 {[%emt 0:00:09]} 24. Nh5 {[%emt 0:13:03]} gxh5 {[%emt 0:21:39]} 25. gxh5 {[%emt 0:00:03]} Ng6 {[%emt 0:01:04]} 26. hxg6 {[%emt 0:00:56]} fxg6 {[%emt 0:07:46]} 27. Be3 {[%emt 0:05:47]} Qb2+ {[%emt 0:05:12]} 28. Kd1 {[%emt 0:00:00]} Qxa2 {[%emt 0:01:13]} 29. Rxg6 {[%emt 0:00:00]} Qa1+ {[%emt 0:06:19]} 30. Qc1 {[%emt 0:00:40]} Qxc3 {[%emt 0:00:27]} 31. Rhg1 {[%emt 0:00:38]} Rf7 {[%emt 0:00:17]} 32. R1g3 {[%emt 0:02:14]} Rb7 {[%emt 0:02:38]} 33. Bc5 {[%emt 0:08:05]} Qxg3 {[%emt 0:01:45]} 34. Rxg3 {[%emt 0:00:20]} Nxc5 {[%emt 0:00:02]} 35. Ke1 {[%emt 0:02:43]} a4 {[%emt 0:02:12]} 36. h5 {[%emt 0:05:07]} Kh7 {[%emt 0:00:32]} 37. Qg5 {[%emt 0:01:50]} Rf6 {[%emt 0:00:04]} 38. f4 {[%emt 0:04:34]} Rbf7 {[%emt 0:00:01]} 39. f5 {[%emt 0:01:57]} Rf8 {[%emt 0:02:38]} 40. Qd2 {[%emt 0:01:17]} Rb8 {[%emt 0:02:06]} 41. Qg2 {[%emt 0:01:28]} Rb7 {[%emt 0:00:27]} 42. Rg6 {[%emt 0:00:26]} Rxg6 {[%emt 0:01:52]} 43. Qxg6+ {[%emt 0:00:15]} Kh8 {[%emt 0:00:22]} 44. f6 {[%emt 0:00:40]} a3 {[%emt 0:00:10]} 45. fxg7+ {[%emt 0:01:48]} Rxg7 {[%emt 0:01:50]} 46. Qxd6 {[%emt 0:00:19]} a2 {[%emt 0:00:18]} 47. Qxe5 {[%emt 0:00:28]} Kg8 {[%emt 0:00:33]} 48. Kf2 {[%emt 0:01:21]} Nb3 {[%emt 0:01:05]} 49. Qb8+ {[%emt 0:00:56]} Kh7 {[%emt 0:00:06]} 50. e5+ {[%emt 0:01:00]} Kh6 {[%emt 0:00:47]} 51. Qh8+ {[%emt 0:00:15]} Kg5 {[%emt 0:00:37]} 52. Qxg7+ {[%emt 0:00:08]} Kh4 {[%emt 0:00:04]} 53. Bd1 {[%emt 0:01:07]} 1-0